{"text_format":"3","workbook":"xlsx","n_sheets":4,"sheets":["CÍLE","DIETA","CVIČENÍ","Výpočty grafu"],"not_rendered":{"charts":2,"defined_names":19},"read":"whole","date_system":"1900"}

{"sheet":"CÍLE","index":0,"n_rows":16,"n_cols":11,"rows_kept":16,"merged":[[2,1,3,1],[7,1,8,1]]}
[null,{"$f":"TODAY()","v":"2017-05-04"},"CÍLE",{"$nulls":6},"Cvičení","Dieta"]
[null,"POČÁTEČNÍ DATUM","DIETNÍ A CVIČEBNÍ DENÍK"]
[null,{"$f":"PočátečníDatum+121","v":"2017-09-02"},"ANALÝZA DIETY"]
[]
[null,"KONCOVÉ DATUM"]
[null,{"v":100,"d":"100.00"}]
[null,"POČÁTEČNÍ VÁHA"]
[null,{"v":80,"d":"80.00"},"ANALÝZA CVIČENÍ"]
[]
[null,"KONEČNÁ VÁHA"]
[null,{"$f":"PočátečníVáha-KonečnáVáha","v":20}]
[null,"CÍL ZHUBNUTÍ"]
[null,{"$f":"KoncovéDatum-PočátečníDatum","v":121}]
[null,"DNY NA ZHUBNUTÍ"]
[null,{"$f":"CílováVáha/B13","v":{"v":0.1652892561983471,"d":"0.17"}}]
[null,"ZHUBNUTÍ ZA DEN"]

{"sheet":"DIETA","index":1,"n_rows":19,"n_cols":9,"rows_kept":19}
[null,"DIETA",{"$nulls":4},"Cíle","Cvičení"]
[null,{"$f":"Podtitul","v":"DIETNÍ A CVIČEBNÍ DENÍK"}]
[null,"DATUM","ČAS","POPIS","KALORIE","SACHARIDY","BÍLKOVINY","TUKY","POZNÁMKY"]
[null,{"$f":"PočátečníDatum","v":"2017-05-04"},"07:00:00","Káva",1,0,0,0,"Ranní káva"]
[null,{"$f":"PočátečníDatum","v":"2017-05-04"},"08:00:00","Houska",10,10,2,10,"Lehká snídaně"]
[null,{"$f":"PočátečníDatum","v":"2017-05-04"},"12:00:00","Oběd",283,46,18,{"v":3.5,"d":"4"},"Sendvič s krůtím masem"]
[null,{"$f":"PočátečníDatum","v":"2017-05-04"},"19:00:00","Večeře",500,42,35,25,"Zapečené masové kuličky s kroketami"]
[null,{"$f":"PočátečníDatum+1","v":"2017-05-05"},"07:00:00","Káva",1,0,0,0,"Ranní káva"]
[null,{"$f":"PočátečníDatum+1","v":"2017-05-05"},"08:00:00","Toust",10,10,2,10,"Lehká snídaně"]
[null,{"$f":"PočátečníDatum+1","v":"2017-05-05"},"12:00:00","Oběd",189,26,3,8,"Sendvič"]
[null,{"$f":"PočátečníDatum+1","v":"2017-05-05"},"19:00:00","Večeře",477,62,{"v":13.5,"d":"14"},21,"Večeře"]
[null,{"$f":"PočátečníDatum+2","v":"2017-05-06"},"07:00:00","Káva",1,0,0,0,"Ranní káva"]
[null,{"$f":"PočátečníDatum+2","v":"2017-05-06"},"08:00:00","Houska",245,48,10,{"v":1.5,"d":"2"},"Lehká snídaně"]
[null,{"$f":"PočátečníDatum+2","v":"2017-05-06"},"12:00:00","Oběd",247,11,43,5,"Salát"]
[null,{"$f":"PočátečníDatum+2","v":"2017-05-06"},"19:00:00","Večeře",456,64,32,22,"Večeře"]
[null,{"$f":"PočátečníDatum+3","v":"2017-05-07"},"07:00:00","Toust",10,10,2,10,"Lehká snídaně"]
[null,{"$f":"PočátečníDatum+3","v":"2017-05-07"},"10:00:00","Káva",135,{"v":12.36,"d":"12"},{"v":8.81,"d":"9"},{"v":5.51,"d":"6"},"Latté"]
[null,{"$f":"PočátečníDatum+3","v":"2017-05-07"},"12:15:00","Oběd",184,7,{"v":5.43,"d":"5"},15,"Salát"]
[null,{"$f":"PočátečníDatum+5","v":"2017-05-09"},"19:00:00","Večeře",477,62,{"v":13.5,"d":"14"},21,"Večeře"]

{"sheet":"CVIČENÍ","index":2,"n_rows":20,"n_cols":7,"rows_kept":20}
[null,"CVIČENÍ",{"$nulls":3},"Dieta","Cíle"]
[null,{"$f":"Podtitul","v":"DIETNÍ A CVIČEBNÍ DENÍK"}]
[null,"DATUM","DÉLKA (MIN)","SPÁLENÉ KALORIE","POZNÁMKY"]
[null,{"$f":"PočátečníDatum+4","v":"2017-05-08"},30,120,"Běžecký pás"]
[null,{"$f":"B4+1","v":"2017-05-09"},60,180,"Lehký aerobik"]
[null,{"$f":"B5+1","v":"2017-05-10"},60,350,"Intenzivní posilování"]
[null,"2017-05-11",30,150,"Běžecký pás"]
[null,"2017-05-12",25,125,"Běh"]
[null,"2017-05-13",20,285,"Běžecký pás"]
[null,"2017-05-14",40,205,"Běh"]
[null,"2017-05-15",30,335,"Běh"]
[null,"2017-05-16",40,175,"Běh"]
[null,"2017-05-17",45,325,"Běžecký pás"]
[null,"2017-05-18",40,270,"Běh"]
[null,"2017-05-19",20,295,"Běžecký pás"]
[null,"2017-05-20",45,350,"Běh"]
[null,"2017-05-21",35,320,"Běh"]
[null,"2017-05-22",40,290,"Běh"]
[null,{"$f":"B18+1","v":"2017-05-23"},25,265,"Běžecký pás"]
[null,"2017-05-24",20,195,"Běh"]

{"sheet":"Výpočty grafu","index":3,"n_rows":36,"n_cols":10,"rows_kept":36,"hidden":true,"merged":[[1,1,1,9],[19,1,19,9]]}
[]
[null,"DATA PRO GRAF ANALÝZY DIETY"]
[]
[null,"Počáteční řádek",{"$f":"ROW(Dieta[[#Headers],[DATUM]])+1","v":4},"DATUM","DEN","TUKY","BÍLKOVINY","SACHARIDY","KALORIE","Počet"]
[null,"Poslední zápis diety",{"$f":"MATCH(9.99E+307,Dieta[DATUM])+ŘádekZačátkuDiety-1","v":19},{"$f":"IFERROR(IF(INDEX(Dieta[],KonecDiety-ŘádekZačátkuDiety-J5,1)<>\"\",INDEX(Dieta[],KonecDiety-ŘádekZačátkuDiety-J5,1),\"\"),\"\")","v":"2017-05-04"},{"$f":"UPPER(TEXT(D5,\"DDD\"))","v":"ČT"},{"$f":"IFERROR((IF(INDEX(Dieta[],KonecDiety-ŘádekZačátkuDiety-J5,1)<>\"\",INDEX(Dieta[],KonecDiety-ŘádekZačátkuDiety-J5,7),NA())),NA())","v":3.5},{"$f":"IFERROR((IF(INDEX(Dieta[],KonecDiety-ŘádekZačátkuDiety-J5,1)<>\"\",INDEX(Dieta[],KonecDiety-ŘádekZačátkuDiety-J5,6),NA())),NA())","v":18},{"$f":"IFERROR((IF(INDEX(Dieta[],KonecDiety-ŘádekZačátkuDiety-J5,1)<>\"\",INDEX(Dieta[],KonecDiety-ŘádekZačátkuDiety-J5,5),NA())),NA())","v":46},{"$f":"IFERROR((IF(INDEX(Dieta[],KonecDiety-ŘádekZačátkuDiety-J5,1)<>\"\",INDEX(Dieta[],KonecDiety-ŘádekZačátkuDiety-J5,4),NA())),NA())","v":283},12]
[{"$nulls":3},{"$f":"IFERROR(IF(INDEX(Dieta[],KonecDiety-ŘádekZačátkuDiety-J6,1)<>\"\",INDEX(Dieta[],KonecDiety-ŘádekZačátkuDiety-J6,1),\"\"),\"\")","v":"2017-05-04"},"ČT",{"$f":"IFERROR((IF(INDEX(Dieta[],KonecDiety-ŘádekZačátkuDiety-J6,1)<>\"\",INDEX(Dieta[],KonecDiety-ŘádekZačátkuDiety-J6,7),NA())),NA())","v":25},{"$f":"IFERROR((IF(INDEX(Dieta[],KonecDiety-ŘádekZačátkuDiety-J6,1)<>\"\",INDEX(Dieta[],KonecDiety-ŘádekZačátkuDiety-J6,6),NA())),NA())","v":35},{"$f":"IFERROR((IF(INDEX(Dieta[],KonecDiety-ŘádekZačátkuDiety-J6,1)<>\"\",INDEX(Dieta[],KonecDiety-ŘádekZačátkuDiety-J6,5),NA())),NA())","v":42},{"$f":"IFERROR((IF(INDEX(Dieta[],KonecDiety-ŘádekZačátkuDiety-J6,1)<>\"\",INDEX(Dieta[],KonecDiety-ŘádekZačátkuDiety-J6,4),NA())),NA())","v":500},11]
[{"$nulls":3},{"$f":"IFERROR(IF(INDEX(Dieta[],KonecDiety-ŘádekZačátkuDiety-J7,1)<>\"\",INDEX(Dieta[],KonecDiety-ŘádekZačátkuDiety-J7,1),\"\"),\"\")","v":"2017-05-05"},"PÁ",{"$f":"IFERROR((IF(INDEX(Dieta[],KonecDiety-ŘádekZačátkuDiety-J7,1)<>\"\",INDEX(Dieta[],KonecDiety-ŘádekZačátkuDiety-J7,7),NA())),NA())","v":0},{"$f":"IFERROR((IF(INDEX(Dieta[],KonecDiety-ŘádekZačátkuDiety-J7,1)<>\"\",INDEX(Dieta[],KonecDiety-ŘádekZačátkuDiety-J7,6),NA())),NA())","v":0},{"$f":"IFERROR((IF(INDEX(Dieta[],KonecDiety-ŘádekZačátkuDiety-J7,1)<>\"\",INDEX(Dieta[],KonecDiety-ŘádekZačátkuDiety-J7,5),NA())),NA())","v":0},{"$f":"IFERROR((IF(INDEX(Dieta[],KonecDiety-ŘádekZačátkuDiety-J7,1)<>\"\",INDEX(Dieta[],KonecDiety-ŘádekZačátkuDiety-J7,4),NA())),NA())","v":1},10]
[{"$nulls":3},{"$f":"IFERROR(IF(INDEX(Dieta[],KonecDiety-ŘádekZačátkuDiety-J8,1)<>\"\",INDEX(Dieta[],KonecDiety-ŘádekZačátkuDiety-J8,1),\"\"),\"\")","v":"2017-05-05"},"PÁ",{"$f":"IFERROR((IF(INDEX(Dieta[],KonecDiety-ŘádekZačátkuDiety-J8,1)<>\"\",INDEX(Dieta[],KonecDiety-ŘádekZačátkuDiety-J8,7),NA())),NA())","v":10},{"$f":"IFERROR((IF(INDEX(Dieta[],KonecDiety-ŘádekZačátkuDiety-J8,1)<>\"\",INDEX(Dieta[],KonecDiety-ŘádekZačátkuDiety-J8,6),NA())),NA())","v":2},{"$f":"IFERROR((IF(INDEX(Dieta[],KonecDiety-ŘádekZačátkuDiety-J8,1)<>\"\",INDEX(Dieta[],KonecDiety-ŘádekZačátkuDiety-J8,5),NA())),NA())","v":10},{"$f":"IFERROR((IF(INDEX(Dieta[],KonecDiety-ŘádekZačátkuDiety-J8,1)<>\"\",INDEX(Dieta[],KonecDiety-ŘádekZačátkuDiety-J8,4),NA())),NA())","v":10},9]
[{"$nulls":3},{"$f":"IFERROR(IF(INDEX(Dieta[],KonecDiety-ŘádekZačátkuDiety-J9,1)<>\"\",INDEX(Dieta[],KonecDiety-ŘádekZačátkuDiety-J9,1),\"\"),\"\")","v":"2017-05-05"},"PÁ",{"$f":"IFERROR((IF(INDEX(Dieta[],KonecDiety-ŘádekZačátkuDiety-J9,1)<>\"\",INDEX(Dieta[],KonecDiety-ŘádekZačátkuDiety-J9,7),NA())),NA())","v":8},{"$f":"IFERROR((IF(INDEX(Dieta[],KonecDiety-ŘádekZačátkuDiety-J9,1)<>\"\",INDEX(Dieta[],KonecDiety-ŘádekZačátkuDiety-J9,6),NA())),NA())","v":3},{"$f":"IFERROR((IF(INDEX(Dieta[],KonecDiety-ŘádekZačátkuDiety-J9,1)<>\"\",INDEX(Dieta[],KonecDiety-ŘádekZačátkuDiety-J9,5),NA())),NA())","v":26},{"$f":"IFERROR((IF(INDEX(Dieta[],KonecDiety-ŘádekZačátkuDiety-J9,1)<>\"\",INDEX(Dieta[],KonecDiety-ŘádekZačátkuDiety-J9,4),NA())),NA())","v":189},8]
[{"$nulls":3},{"$f":"IFERROR(IF(INDEX(Dieta[],KonecDiety-ŘádekZačátkuDiety-J10,1)<>\"\",INDEX(Dieta[],KonecDiety-ŘádekZačátkuDiety-J10,1),\"\"),\"\")","v":"2017-05-05"},"PÁ",{"$f":"IFERROR((IF(INDEX(Dieta[],KonecDiety-ŘádekZačátkuDiety-J10,1)<>\"\",INDEX(Dieta[],KonecDiety-ŘádekZačátkuDiety-J10,7),NA())),NA())","v":21},{"$f":"IFERROR((IF(INDEX(Dieta[],KonecDiety-ŘádekZačátkuDiety-J10,1)<>\"\",INDEX(Dieta[],KonecDiety-ŘádekZačátkuDiety-J10,6),NA())),NA())","v":13.5},{"$f":"IFERROR((IF(INDEX(Dieta[],KonecDiety-ŘádekZačátkuDiety-J10,1)<>\"\",INDEX(Dieta[],KonecDiety-ŘádekZačátkuDiety-J10,5),NA())),NA())","v":62},{"$f":"IFERROR((IF(INDEX(Dieta[],KonecDiety-ŘádekZačátkuDiety-J10,1)<>\"\",INDEX(Dieta[],KonecDiety-ŘádekZačátkuDiety-J10,4),NA())),NA())","v":477},7]
[{"$nulls":3},{"$f":"IFERROR(IF(INDEX(Dieta[],KonecDiety-ŘádekZačátkuDiety-J11,1)<>\"\",INDEX(Dieta[],KonecDiety-ŘádekZačátkuDiety-J11,1),\"\"),\"\")","v":"2017-05-06"},"SO",{"$f":"IFERROR((IF(INDEX(Dieta[],KonecDiety-ŘádekZačátkuDiety-J11,1)<>\"\",INDEX(Dieta[],KonecDiety-ŘádekZačátkuDiety-J11,7),NA())),NA())","v":0},{"$f":"IFERROR((IF(INDEX(Dieta[],KonecDiety-ŘádekZačátkuDiety-J11,1)<>\"\",INDEX(Dieta[],KonecDiety-ŘádekZačátkuDiety-J11,6),NA())),NA())","v":0},{"$f":"IFERROR((IF(INDEX(Dieta[],KonecDiety-ŘádekZačátkuDiety-J11,1)<>\"\",INDEX(Dieta[],KonecDiety-ŘádekZačátkuDiety-J11,5),NA())),NA())","v":0},{"$f":"IFERROR((IF(INDEX(Dieta[],KonecDiety-ŘádekZačátkuDiety-J11,1)<>\"\",INDEX(Dieta[],KonecDiety-ŘádekZačátkuDiety-J11,4),NA())),NA())","v":1},6]
[{"$nulls":3},{"$f":"IFERROR(IF(INDEX(Dieta[],KonecDiety-ŘádekZačátkuDiety-J12,1)<>\"\",INDEX(Dieta[],KonecDiety-ŘádekZačátkuDiety-J12,1),\"\"),\"\")","v":"2017-05-06"},"SO",{"$f":"IFERROR((IF(INDEX(Dieta[],KonecDiety-ŘádekZačátkuDiety-J12,1)<>\"\",INDEX(Dieta[],KonecDiety-ŘádekZačátkuDiety-J12,7),NA())),NA())","v":1.5},{"$f":"IFERROR((IF(INDEX(Dieta[],KonecDiety-ŘádekZačátkuDiety-J12,1)<>\"\",INDEX(Dieta[],KonecDiety-ŘádekZačátkuDiety-J12,6),NA())),NA())","v":10},{"$f":"IFERROR((IF(INDEX(Dieta[],KonecDiety-ŘádekZačátkuDiety-J12,1)<>\"\",INDEX(Dieta[],KonecDiety-ŘádekZačátkuDiety-J12,5),NA())),NA())","v":48},{"$f":"IFERROR((IF(INDEX(Dieta[],KonecDiety-ŘádekZačátkuDiety-J12,1)<>\"\",INDEX(Dieta[],KonecDiety-ŘádekZačátkuDiety-J12,4),NA())),NA())","v":245},5]
[{"$nulls":3},{"$f":"IFERROR(IF(INDEX(Dieta[],KonecDiety-ŘádekZačátkuDiety-J13,1)<>\"\",INDEX(Dieta[],KonecDiety-ŘádekZačátkuDiety-J13,1),\"\"),\"\")","v":"2017-05-06"},"SO",{"$f":"IFERROR((IF(INDEX(Dieta[],KonecDiety-ŘádekZačátkuDiety-J13,1)<>\"\",INDEX(Dieta[],KonecDiety-ŘádekZačátkuDiety-J13,7),NA())),NA())","v":5},{"$f":"IFERROR((IF(INDEX(Dieta[],KonecDiety-ŘádekZačátkuDiety-J13,1)<>\"\",INDEX(Dieta[],KonecDiety-ŘádekZačátkuDiety-J13,6),NA())),NA())","v":43},{"$f":"IFERROR((IF(INDEX(Dieta[],KonecDiety-ŘádekZačátkuDiety-J13,1)<>\"\",INDEX(Dieta[],KonecDiety-ŘádekZačátkuDiety-J13,5),NA())),NA())","v":11},{"$f":"IFERROR((IF(INDEX(Dieta[],KonecDiety-ŘádekZačátkuDiety-J13,1)<>\"\",INDEX(Dieta[],KonecDiety-ŘádekZačátkuDiety-J13,4),NA())),NA())","v":247},4]
[{"$nulls":3},{"$f":"IFERROR(IF(INDEX(Dieta[],KonecDiety-ŘádekZačátkuDiety-J14,1)<>\"\",INDEX(Dieta[],KonecDiety-ŘádekZačátkuDiety-J14,1),\"\"),\"\")","v":"2017-05-06"},"SO",{"$f":"IFERROR((IF(INDEX(Dieta[],KonecDiety-ŘádekZačátkuDiety-J14,1)<>\"\",INDEX(Dieta[],KonecDiety-ŘádekZačátkuDiety-J14,7),NA())),NA())","v":22},{"$f":"IFERROR((IF(INDEX(Dieta[],KonecDiety-ŘádekZačátkuDiety-J14,1)<>\"\",INDEX(Dieta[],KonecDiety-ŘádekZačátkuDiety-J14,6),NA())),NA())","v":32},{"$f":"IFERROR((IF(INDEX(Dieta[],KonecDiety-ŘádekZačátkuDiety-J14,1)<>\"\",INDEX(Dieta[],KonecDiety-ŘádekZačátkuDiety-J14,5),NA())),NA())","v":64},{"$f":"IFERROR((IF(INDEX(Dieta[],KonecDiety-ŘádekZačátkuDiety-J14,1)<>\"\",INDEX(Dieta[],KonecDiety-ŘádekZačátkuDiety-J14,4),NA())),NA())","v":456},3]
[{"$nulls":3},{"$f":"IFERROR(IF(INDEX(Dieta[],KonecDiety-ŘádekZačátkuDiety-J15,1)<>\"\",INDEX(Dieta[],KonecDiety-ŘádekZačátkuDiety-J15,1),\"\"),\"\")","v":"2017-05-07"},"NE",{"$f":"IFERROR((IF(INDEX(Dieta[],KonecDiety-ŘádekZačátkuDiety-J15,1)<>\"\",INDEX(Dieta[],KonecDiety-ŘádekZačátkuDiety-J15,7),NA())),NA())","v":10},{"$f":"IFERROR((IF(INDEX(Dieta[],KonecDiety-ŘádekZačátkuDiety-J15,1)<>\"\",INDEX(Dieta[],KonecDiety-ŘádekZačátkuDiety-J15,6),NA())),NA())","v":2},{"$f":"IFERROR((IF(INDEX(Dieta[],KonecDiety-ŘádekZačátkuDiety-J15,1)<>\"\",INDEX(Dieta[],KonecDiety-ŘádekZačátkuDiety-J15,5),NA())),NA())","v":10},{"$f":"IFERROR((IF(INDEX(Dieta[],KonecDiety-ŘádekZačátkuDiety-J15,1)<>\"\",INDEX(Dieta[],KonecDiety-ŘádekZačátkuDiety-J15,4),NA())),NA())","v":10},2]
[{"$nulls":3},{"$f":"IFERROR(IF(INDEX(Dieta[],KonecDiety-ŘádekZačátkuDiety-J16,1)<>\"\",INDEX(Dieta[],KonecDiety-ŘádekZačátkuDiety-J16,1),\"\"),\"\")","v":"2017-05-07"},"NE",{"$f":"IFERROR((IF(INDEX(Dieta[],KonecDiety-ŘádekZačátkuDiety-J16,1)<>\"\",INDEX(Dieta[],KonecDiety-ŘádekZačátkuDiety-J16,7),NA())),NA())","v":5.51},{"$f":"IFERROR((IF(INDEX(Dieta[],KonecDiety-ŘádekZačátkuDiety-J16,1)<>\"\",INDEX(Dieta[],KonecDiety-ŘádekZačátkuDiety-J16,6),NA())),NA())","v":8.81},{"$f":"IFERROR((IF(INDEX(Dieta[],KonecDiety-ŘádekZačátkuDiety-J16,1)<>\"\",INDEX(Dieta[],KonecDiety-ŘádekZačátkuDiety-J16,5),NA())),NA())","v":12.36},{"$f":"IFERROR((IF(INDEX(Dieta[],KonecDiety-ŘádekZačátkuDiety-J16,1)<>\"\",INDEX(Dieta[],KonecDiety-ŘádekZačátkuDiety-J16,4),NA())),NA())","v":135},1]
[{"$nulls":3},{"$f":"IFERROR(IF(INDEX(Dieta[],KonecDiety-ŘádekZačátkuDiety-J17,1)<>\"\",INDEX(Dieta[],KonecDiety-ŘádekZačátkuDiety-J17,1),\"\"),\"\")","v":"2017-05-07"},"NE",{"$f":"IFERROR((IF(INDEX(Dieta[],KonecDiety-ŘádekZačátkuDiety-J17,1)<>\"\",INDEX(Dieta[],KonecDiety-ŘádekZačátkuDiety-J17,7),NA())),NA())","v":15},{"$f":"IFERROR((IF(INDEX(Dieta[],KonecDiety-ŘádekZačátkuDiety-J17,1)<>\"\",INDEX(Dieta[],KonecDiety-ŘádekZačátkuDiety-J17,6),NA())),NA())","v":5.43},{"$f":"IFERROR((IF(INDEX(Dieta[],KonecDiety-ŘádekZačátkuDiety-J17,1)<>\"\",INDEX(Dieta[],KonecDiety-ŘádekZačátkuDiety-J17,5),NA())),NA())","v":7},{"$f":"IFERROR((IF(INDEX(Dieta[],KonecDiety-ŘádekZačátkuDiety-J17,1)<>\"\",INDEX(Dieta[],KonecDiety-ŘádekZačátkuDiety-J17,4),NA())),NA())","v":184},0]
[{"$nulls":3},{"$f":"IFERROR(IF(INDEX(Dieta[],KonecDiety-ŘádekZačátkuDiety-J18,1)<>\"\",INDEX(Dieta[],KonecDiety-ŘádekZačátkuDiety-J18,1)),\"\")","v":"2017-05-09"},"ÚT",{"$f":"IFERROR((IF(INDEX(Dieta[],KonecDiety-ŘádekZačátkuDiety-J18,1)<>\"\",INDEX(Dieta[],KonecDiety-ŘádekZačátkuDiety-J18,7),NA())),NA())","v":21},{"$f":"IFERROR((IF(INDEX(Dieta[],KonecDiety-ŘádekZačátkuDiety-J18,1)<>\"\",INDEX(Dieta[],KonecDiety-ŘádekZačátkuDiety-J18,6),NA())),NA())","v":13.5},{"$f":"IFERROR((IF(INDEX(Dieta[],KonecDiety-ŘádekZačátkuDiety-J18,1)<>\"\",INDEX(Dieta[],KonecDiety-ŘádekZačátkuDiety-J18,5),NA())),NA())","v":62},{"$f":"IFERROR((IF(INDEX(Dieta[],KonecDiety-ŘádekZačátkuDiety-J18,1)<>\"\",INDEX(Dieta[],KonecDiety-ŘádekZačátkuDiety-J18,4),NA())),NA())","v":477},-1]
[]
[null,"DATA PRO GRAF ANALÝZY CVIČENÍ"]
[]
[null,"Počáteční řádek",{"$f":"ROW(Cvičení[[#Headers],[DATUM]])+1","v":4},"DATUM","DEN","DÉLKA (MIN)","SPÁLENÉ KALORIE","Počet"]
[null,"Poslední zápis cvičení",{"$f":"MATCH(9.99E+307,Cvičení[DATUM])+ŘádekZačátkuCvičení-1","v":20},{"$f":"IFERROR(IF(INDEX(Cvičení[],KonecCvičení-ŘádekZačátkuCvičení-H23,1)<>\"\",INDEX(Cvičení[],KonecCvičení-ŘádekZačátkuCvičení-H23,1)),\"\")","v":"2017-05-24"},{"$f":"UPPER(TEXT(D23,\"DDD\"))","v":"ST"},{"$f":"IFERROR((IF(INDEX(Cvičení[],KonecCvičení-ŘádekZačátkuCvičení-H23,1)<>\"\",INDEX(Cvičení[],KonecCvičení-ŘádekZačátkuCvičení-H23,2),0)),0)","v":20},{"$f":"IFERROR((IF(INDEX(Cvičení[],KonecCvičení-ŘádekZačátkuCvičení-H23,2)<>\"\",INDEX(Cvičení[],KonecCvičení-ŘádekZačátkuCvičení-H23,3),0)),0)","v":195},-1]
[{"$nulls":3},{"$f":"IFERROR(IF(INDEX(Cvičení[],KonecCvičení-ŘádekZačátkuCvičení-H24,1)<>\"\",INDEX(Cvičení[],KonecCvičení-ŘádekZačátkuCvičení-H24,1)),\"\")","v":"2017-05-23"},"ÚT",{"$f":"IFERROR((IF(INDEX(Cvičení[],KonecCvičení-ŘádekZačátkuCvičení-H24,1)<>\"\",INDEX(Cvičení[],KonecCvičení-ŘádekZačátkuCvičení-H24,2),0)),0)","v":25},{"$f":"IFERROR((IF(INDEX(Cvičení[],KonecCvičení-ŘádekZačátkuCvičení-H24,2)<>\"\",INDEX(Cvičení[],KonecCvičení-ŘádekZačátkuCvičení-H24,3),0)),0)","v":265},0]
[{"$nulls":3},{"$f":"IFERROR(IF(INDEX(Cvičení[],KonecCvičení-ŘádekZačátkuCvičení-H25,1)<>\"\",INDEX(Cvičení[],KonecCvičení-ŘádekZačátkuCvičení-H25,1)),\"\")","v":"2017-05-22"},"PO",{"$f":"IFERROR((IF(INDEX(Cvičení[],KonecCvičení-ŘádekZačátkuCvičení-H25,1)<>\"\",INDEX(Cvičení[],KonecCvičení-ŘádekZačátkuCvičení-H25,2),0)),0)","v":40},{"$f":"IFERROR((IF(INDEX(Cvičení[],KonecCvičení-ŘádekZačátkuCvičení-H25,2)<>\"\",INDEX(Cvičení[],KonecCvičení-ŘádekZačátkuCvičení-H25,3),0)),0)","v":290},1]
[{"$nulls":3},{"$f":"IFERROR(IF(INDEX(Cvičení[],KonecCvičení-ŘádekZačátkuCvičení-H26,1)<>\"\",INDEX(Cvičení[],KonecCvičení-ŘádekZačátkuCvičení-H26,1)),\"\")","v":"2017-05-21"},"NE",{"$f":"IFERROR((IF(INDEX(Cvičení[],KonecCvičení-ŘádekZačátkuCvičení-H26,1)<>\"\",INDEX(Cvičení[],KonecCvičení-ŘádekZačátkuCvičení-H26,2),0)),0)","v":35},{"$f":"IFERROR((IF(INDEX(Cvičení[],KonecCvičení-ŘádekZačátkuCvičení-H26,2)<>\"\",INDEX(Cvičení[],KonecCvičení-ŘádekZačátkuCvičení-H26,3),0)),0)","v":320},2]
[{"$nulls":3},{"$f":"IFERROR(IF(INDEX(Cvičení[],KonecCvičení-ŘádekZačátkuCvičení-H27,1)<>\"\",INDEX(Cvičení[],KonecCvičení-ŘádekZačátkuCvičení-H27,1)),\"\")","v":"2017-05-20"},"SO",{"$f":"IFERROR((IF(INDEX(Cvičení[],KonecCvičení-ŘádekZačátkuCvičení-H27,1)<>\"\",INDEX(Cvičení[],KonecCvičení-ŘádekZačátkuCvičení-H27,2),0)),0)","v":45},{"$f":"IFERROR((IF(INDEX(Cvičení[],KonecCvičení-ŘádekZačátkuCvičení-H27,2)<>\"\",INDEX(Cvičení[],KonecCvičení-ŘádekZačátkuCvičení-H27,3),0)),0)","v":350},3]
[{"$nulls":3},{"$f":"IFERROR(IF(INDEX(Cvičení[],KonecCvičení-ŘádekZačátkuCvičení-H28,1)<>\"\",INDEX(Cvičení[],KonecCvičení-ŘádekZačátkuCvičení-H28,1)),\"\")","v":"2017-05-19"},"PÁ",{"$f":"IFERROR((IF(INDEX(Cvičení[],KonecCvičení-ŘádekZačátkuCvičení-H28,1)<>\"\",INDEX(Cvičení[],KonecCvičení-ŘádekZačátkuCvičení-H28,2),0)),0)","v":20},{"$f":"IFERROR((IF(INDEX(Cvičení[],KonecCvičení-ŘádekZačátkuCvičení-H28,2)<>\"\",INDEX(Cvičení[],KonecCvičení-ŘádekZačátkuCvičení-H28,3),0)),0)","v":295},4]
[{"$nulls":3},{"$f":"IFERROR(IF(INDEX(Cvičení[],KonecCvičení-ŘádekZačátkuCvičení-H29,1)<>\"\",INDEX(Cvičení[],KonecCvičení-ŘádekZačátkuCvičení-H29,1)),\"\")","v":"2017-05-18"},"ČT",{"$f":"IFERROR((IF(INDEX(Cvičení[],KonecCvičení-ŘádekZačátkuCvičení-H29,1)<>\"\",INDEX(Cvičení[],KonecCvičení-ŘádekZačátkuCvičení-H29,2),0)),0)","v":40},{"$f":"IFERROR((IF(INDEX(Cvičení[],KonecCvičení-ŘádekZačátkuCvičení-H29,2)<>\"\",INDEX(Cvičení[],KonecCvičení-ŘádekZačátkuCvičení-H29,3),0)),0)","v":270},5]
[{"$nulls":3},{"$f":"IFERROR(IF(INDEX(Cvičení[],KonecCvičení-ŘádekZačátkuCvičení-H30,1)<>\"\",INDEX(Cvičení[],KonecCvičení-ŘádekZačátkuCvičení-H30,1)),\"\")","v":"2017-05-17"},"ST",{"$f":"IFERROR((IF(INDEX(Cvičení[],KonecCvičení-ŘádekZačátkuCvičení-H30,1)<>\"\",INDEX(Cvičení[],KonecCvičení-ŘádekZačátkuCvičení-H30,2),0)),0)","v":45},{"$f":"IFERROR((IF(INDEX(Cvičení[],KonecCvičení-ŘádekZačátkuCvičení-H30,2)<>\"\",INDEX(Cvičení[],KonecCvičení-ŘádekZačátkuCvičení-H30,3),0)),0)","v":325},6]
[{"$nulls":3},{"$f":"IFERROR(IF(INDEX(Cvičení[],KonecCvičení-ŘádekZačátkuCvičení-H31,1)<>\"\",INDEX(Cvičení[],KonecCvičení-ŘádekZačátkuCvičení-H31,1)),\"\")","v":"2017-05-16"},"ÚT",{"$f":"IFERROR((IF(INDEX(Cvičení[],KonecCvičení-ŘádekZačátkuCvičení-H31,1)<>\"\",INDEX(Cvičení[],KonecCvičení-ŘádekZačátkuCvičení-H31,2),0)),0)","v":40},{"$f":"IFERROR((IF(INDEX(Cvičení[],KonecCvičení-ŘádekZačátkuCvičení-H31,2)<>\"\",INDEX(Cvičení[],KonecCvičení-ŘádekZačátkuCvičení-H31,3),0)),0)","v":175},7]
[{"$nulls":3},{"$f":"IFERROR(IF(INDEX(Cvičení[],KonecCvičení-ŘádekZačátkuCvičení-H32,1)<>\"\",INDEX(Cvičení[],KonecCvičení-ŘádekZačátkuCvičení-H32,1)),\"\")","v":"2017-05-15"},"PO",{"$f":"IFERROR((IF(INDEX(Cvičení[],KonecCvičení-ŘádekZačátkuCvičení-H32,1)<>\"\",INDEX(Cvičení[],KonecCvičení-ŘádekZačátkuCvičení-H32,2),0)),0)","v":30},{"$f":"IFERROR((IF(INDEX(Cvičení[],KonecCvičení-ŘádekZačátkuCvičení-H32,2)<>\"\",INDEX(Cvičení[],KonecCvičení-ŘádekZačátkuCvičení-H32,3),0)),0)","v":335},8]
[{"$nulls":3},{"$f":"IFERROR(IF(INDEX(Cvičení[],KonecCvičení-ŘádekZačátkuCvičení-H33,1)<>\"\",INDEX(Cvičení[],KonecCvičení-ŘádekZačátkuCvičení-H33,1)),\"\")","v":"2017-05-14"},"NE",{"$f":"IFERROR((IF(INDEX(Cvičení[],KonecCvičení-ŘádekZačátkuCvičení-H33,1)<>\"\",INDEX(Cvičení[],KonecCvičení-ŘádekZačátkuCvičení-H33,2),0)),0)","v":40},{"$f":"IFERROR((IF(INDEX(Cvičení[],KonecCvičení-ŘádekZačátkuCvičení-H33,2)<>\"\",INDEX(Cvičení[],KonecCvičení-ŘádekZačátkuCvičení-H33,3),0)),0)","v":205},9]
[{"$nulls":3},{"$f":"IFERROR(IF(INDEX(Cvičení[],KonecCvičení-ŘádekZačátkuCvičení-H34,1)<>\"\",INDEX(Cvičení[],KonecCvičení-ŘádekZačátkuCvičení-H34,1)),\"\")","v":"2017-05-13"},"SO",{"$f":"IFERROR((IF(INDEX(Cvičení[],KonecCvičení-ŘádekZačátkuCvičení-H34,1)<>\"\",INDEX(Cvičení[],KonecCvičení-ŘádekZačátkuCvičení-H34,2),0)),0)","v":20},{"$f":"IFERROR((IF(INDEX(Cvičení[],KonecCvičení-ŘádekZačátkuCvičení-H34,2)<>\"\",INDEX(Cvičení[],KonecCvičení-ŘádekZačátkuCvičení-H34,3),0)),0)","v":285},10]
[{"$nulls":3},{"$f":"IFERROR(IF(INDEX(Cvičení[],KonecCvičení-ŘádekZačátkuCvičení-H35,1)<>\"\",INDEX(Cvičení[],KonecCvičení-ŘádekZačátkuCvičení-H35,1)),\"\")","v":"2017-05-12"},"PÁ",{"$f":"IFERROR((IF(INDEX(Cvičení[],KonecCvičení-ŘádekZačátkuCvičení-H35,1)<>\"\",INDEX(Cvičení[],KonecCvičení-ŘádekZačátkuCvičení-H35,2),0)),0)","v":25},{"$f":"IFERROR((IF(INDEX(Cvičení[],KonecCvičení-ŘádekZačátkuCvičení-H35,2)<>\"\",INDEX(Cvičení[],KonecCvičení-ŘádekZačátkuCvičení-H35,3),0)),0)","v":125},11]
[{"$nulls":3},{"$f":"IFERROR(IF(INDEX(Cvičení[],KonecCvičení-ŘádekZačátkuCvičení-H36,1)<>\"\",INDEX(Cvičení[],KonecCvičení-ŘádekZačátkuCvičení-H36,1)),\"\")","v":"2017-05-11"},"ČT",{"$f":"IFERROR((IF(INDEX(Cvičení[],KonecCvičení-ŘádekZačátkuCvičení-H36,1)<>\"\",INDEX(Cvičení[],KonecCvičení-ŘádekZačátkuCvičení-H36,2),0)),0)","v":30},{"$f":"IFERROR((IF(INDEX(Cvičení[],KonecCvičení-ŘádekZačátkuCvičení-H36,2)<>\"\",INDEX(Cvičení[],KonecCvičení-ŘádekZačátkuCvičení-H36,3),0)),0)","v":150},12]